fUSD/lending_fUSD_20250105
["ID","MTS","AMOUNT","RATE_DAILY","PERIOD"]
[347776075,1736099450940,-500.0,9.958e-05,2]
[347776076,1736099450951,-525.26,9.958e-05,2]
[347776077,1736099450962,-500.0,9.958e-05,2]
[347776078,1736099450973,-500.0,9.958e-05,2]
[347776079,1736099450983,-500.0,9.958e-05,2]
[347776080,1736099450992,-280.89924057,9.958e-05,2]
[347776081,1736099451002,-500.0,9.958e-05,2]
[347776082,1736099451014,-500.0,9.958e-05,2]
[347776083,1736099451025,-500.0,9.958e-05,2]
[347776084,1736099451036,-500.0,9.958e-05,2]
[347776085,1736099451046,-500.0,9.958e-05,2]
[347776086,1736099451057,-500.0,9.958e-05,2]
[347776087,1736099451068,-500.0,9.958e-05,2]
[347776088,1736099451079,-500.0,9.958e-05,2]
[347776089,1736099451091,-500.0,9.958e-05,2]
[347776090,1736099451102,-500.0,9.958e-05,2]
[347776091,1736099451114,-500.0,9.958e-05,2]
[347776092,1736099451126,-500.0,9.958e-05,2]
[347776093,1736099451137,-500.0,9.958e-05,2]
[347776094,1736099451149,-500.0,9.958e-05,2]
[347776095,1736099451160,-500.0,9.958e-05,2]
[347776096,1736099451172,-500.0,9.958e-05,2]
[347776097,1736099451182,-355.82765111,9.958e-05,2]
[347776098,1736099451193,-500.0,9.958e-05,2]
[347776099,1736099451204,-641.01,9.958e-05,2]
[347776100,1736099451214,-500.0,9.958e-05,2]
[347776101,1736099451226,-500.0,9.958e-05,2]
[347776102,1736099451239,-500.0,9.958e-05,2]
[347776103,1736099451249,-500.0,9.958e-05,2]
[347776104,1736099451260,-500.0,9.958e-05,2]
[347776105,1736099451272,-500.0,9.958e-05,2]
[347776106,1736099451283,-624.09706721,9.958e-05,2]
[347776107,1736099451296,-500.0,9.958e-05,2]
[347776108,1736099451307,-500.0,9.958e-05,2]
[347776109,1736099451318,-500.0,9.958e-05,2]
[347776110,1736099451329,-500.0,9.958e-05,2]
[347776111,1736099451340,-500.0,9.958e-05,2]
[347776112,1736099451350,-500.0,9.958e-05,2]
[347776113,1736099451360,-500.0,9.958e-05,2]
[347776114,1736099451371,-500.0,9.958e-05,2]
[347776115,1736099451382,-511.01,9.959e-05,2]
[347776116,1736099451394,-746.88,9.959e-05,2]
[347776117,1736099451408,-500.0,9.959e-05,2]
[347776118,1736099451420,-500.0,9.959e-05,2]
[347776119,1736099451430,-1325.71,9.959e-05,2]
[347776120,1736099451440,-682.39,9.959e-05,2]
[347776121,1736099451450,-2092.54,9.959e-05,2]
[347776122,1736099451460,-1423.34,9.959e-05,2]
[347776123,1736099451473,-1862.91,9.959e-05,2]
[347776124,1736099451485,-500.0,9.959e-05,2]
[347776125,1736099451497,-500.0,9.959e-05,2]
[347776126,1736099451508,-1392.82,9.959e-05,2]
[347776127,1736099451521,-589.63,9.959e-05,2]
[347776128,1736099451531,-549.22,9.959e-05,2]
[347776129,1736099451542,-1073.55,9.959e-05,2]
[347776130,1736099451553,-500.0,9.959e-05,2]
[347776131,1736099451564,-605.81,9.959e-05,2]
[347776132,1736099451575,-1177.46,9.959e-05,2]
[347776133,1736099451585,-641.24,9.959e-05,2]
[347776134,1736099451596,-928.96,9.959e-05,2]
[347776135,1736099451606,-688.04,9.959e-05,2]
[347776136,1736099451617,-500.0,9.959e-05,2]
[347776137,1736099451627,-527.35,9.959e-05,2]
[347776138,1736099451638,-721.42,9.959e-05,2]
[347776139,1736099451648,-721.42,9.959e-05,2]
[347776140,1736099451658,-730.88,9.959e-05,2]
[347776141,1736099451668,-1077.7,9.959e-05,2]
[347776142,1736099451678,-571.01,9.959e-05,2]
[347776143,1736099451689,-500.0,9.959e-05,2]
[347776144,1736099451699,-11869.0,9.973e-05,2]
[347776145,1736099451710,-500.0,9.973e-05,2]
[347776146,1736099451720,-500.0,9.973e-05,2]
[347776147,1736099451733,-500.0,9.973e-05,2]
[347776148,1736099451744,-500.0,9.973e-05,2]
[347776149,1736099451754,-500.0,9.999e-05,2]
[347776150,1736099451764,-151962.84338933,0.0001,2]
[347776151,1736099451780,-760647.32610599,0.0001,2]
[347776152,1736099451792,-2000.0,0.0001,2]
[347776153,1736099451804,-916.31622658,0.0001,2]
[347776154,1736099451838,-79261.7926361,0.0001,2]
[347776155,1736099451851,-281.36276986,0.0001,2]
[347776380,1736100474869,2464.1415508,0.0002,120]
[347776401,1736100631526,-524.72012969,8.219e-05,2]
[347776402,1736100631551,-1105.90986062,8.219e-05,2]
[347776403,1736100631795,-237.60000969,8.219e-05,2]
[347776404,1736100631805,-55.20399031,8.325e-05,2]
[347776405,1736100631816,-181.54600969,8.325e-05,2]
[347776406,1736100631826,-693.68292133,8.325e-05,2]
[347776407,1736100631836,-250.0,8.343e-05,2]
[347776408,1736100631847,-1000.0,8.345e-05,2]
[347776409,1736100631859,-250.0,8.35e-05,2]
[347776410,1736100631868,-261.13,8.402e-05,2]
[347776411,1736100631877,-154.89872579,8.526e-05,2]
[347776412,1736100631889,-12.05127421,8.526e-05,2]
[347776413,1736100631898,-516.03,8.589e-05,2]
[347776414,1736100631907,-500.0,8.589e-05,2]
[347776415,1736100631916,-500.0,8.589e-05,2]
[347776416,1736100631926,-500.0,8.589e-05,2]
[347776417,1736100631935,-500.0,8.589e-05,2]
[347776418,1736100631945,-500.0,8.589e-05,2]
[347776419,1736100631954,-500.0,8.589e-05,2]
[347776420,1736100631964,-909.86,8.589e-05,2]
[347776422,1736100631973,-815.12,8.589e-05,2]
[347776424,1736100631982,-1077.03,8.589e-05,2]
[347776426,1736100631990,-1996.75,8.589e-05,2]
[347776428,1736100632000,-500.0,8.589e-05,2]
[347776429,1736100632009,-500.0,8.589e-05,2]
[347776431,1736100632018,-522.31,8.589e-05,2]
[347776433,1736100632027,-1119.42,8.589e-05,2]
[347776435,1736100632036,-847.01,8.589e-05,2]
[347776437,1736100632045,-500.0,8.589e-05,2]
[347776439,1736100632054,-500.0,8.589e-05,2]
[347776441,1736100632064,-842.12,8.589e-05,2]
[347776443,1736100632073,-597.16,8.589e-05,2]
[347776445,1736100632082,-570.39,8.589e-05,2]
[347776447,1736100632091,-727.79,8.589e-05,2]
[347776449,1736100632101,-1000.0,8.589e-05,2]
[347776451,1736100632110,-500.0,8.589e-05,2]
[347776453,1736100632119,-693.68292131,8.73e-05,2]
[347776455,1736100632128,-1500.0,8.755e-05,2]
[347776457,1736100632137,-516.03,8.863e-05,2]
[347776459,1736100632146,-500.0,8.863e-05,2]
[347776461,1736100632155,-500.0,8.863e-05,2]
[347776463,1736100632164,-500.0,8.863e-05,2]
[347776465,1736100632174,-500.0,8.863e-05,2]
[347776467,1736100632182,-500.0,8.863e-05,2]
[347776469,1736100632192,-909.86,8.863e-05,2]
[347776471,1736100632202,-815.12,8.863e-05,2]
[347776473,1736100632211,-1077.03,8.863e-05,2]
[347776475,1736100632221,-1996.75,8.863e-05,2]
[347776477,1736100632230,-500.0,8.863e-05,2]
[347776479,1736100632239,-500.0,8.863e-05,2]
[347776481,1736100632249,-522.31,8.863e-05,2]
[347776483,1736100632258,-1119.42,8.863e-05,2]
[347776485,1736100632268,-847.01,8.863e-05,2]
[347776487,1736100632277,-500.0,8.863e-05,2]
[347776489,1736100632287,-842.12,8.863e-05,2]
[347776491,1736100632296,-597.16,8.863e-05,2]
[347776493,1736100632306,-570.39,8.863e-05,2]
[347776495,1736100632315,-727.79,8.863e-05,2]
[347776497,1736100632324,-500.0,8.863e-05,2]
[347776499,1736100632333,-1000.0,9e-05,10]
[347776501,1736100632342,-150.0,9e-05,2]
[347776503,1736100632352,-150.0,9e-05,2]
[347776505,1736100632361,-150.0,9e-05,2]
[347776507,1736100632371,-4379.6962,9.037e-05,2]
[347776509,1736100632380,-1300.0,9.072e-05,2]
[347776511,1736100632389,-500.0,9.072e-05,2]
[347776513,1736100632399,-500.0,9.135e-05,2]
[347776515,1736100632408,-500.0,9.135e-05,2]
[347776517,1736100632417,-565.07,9.135e-05,2]
[347776519,1736100632427,-500.0,9.135e-05,2]
[347776521,1736100632436,-500.0,9.135e-05,2]
[347776522,1736100632445,-500.0,9.135e-05,2]
[347776523,1736100632455,-500.0,9.135e-05,2]
[347776524,1736100632464,-500.0,9.135e-05,2]
[347776525,1736100632473,-500.0,9.135e-05,2]
[347776526,1736100632483,-500.0,9.135e-05,2]
[347776528,1736100632492,-500.0,9.135e-05,2]
[347776529,1736100632501,-500.0,9.135e-05,2]
[347776530,1736100632510,-500.0,9.135e-05,2]
[347776531,1736100632520,-500.0,9.135e-05,2]
[347776532,1736100632529,-500.0,9.135e-05,2]
[347776533,1736100632538,-500.0,9.135e-05,2]
[347776534,1736100632548,-555.29,9.135e-05,2]
[347776535,1736100632557,-500.0,9.135e-05,2]
[347776536,1736100632567,-500.0,9.135e-05,2]
[347776537,1736100632576,-500.0,9.135e-05,2]
[347776538,1736100632585,-500.0,9.135e-05,2]
[347776539,1736100632595,-500.0,9.135e-05,2]
[347776540,1736100632605,-500.0,9.135e-05,2]
[347776541,1736100632614,-500.0,9.135e-05,2]
[347776542,1736100632623,-500.0,9.135e-05,2]
[347776543,1736100632633,-500.0,9.135e-05,2]
[347776544,1736100632643,-500.0,9.135e-05,2]
[347776545,1736100632652,-717.55,9.135e-05,2]
[347776546,1736100632661,-500.0,9.135e-05,2]
[347776547,1736100632671,-500.0,9.135e-05,2]
[347776548,1736100632680,-500.0,9.135e-05,2]
[347776549,1736100632690,-500.0,9.135e-05,2]
[347776550,1736100632699,-548.16,9.135e-05,2]
[347776551,1736100632709,-500.0,9.135e-05,2]
[347776552,1736100632718,-1065.45,9.135e-05,2]
[347776553,1736100632727,-500.0,9.135e-05,2]
[347776554,1736100632737,-901.69,9.135e-05,2]
[347776555,1736100632746,-501.76,9.135e-05,2]
[347776556,1736100632755,-729.76,9.135e-05,2]
[347776557,1736100632764,-937.19,9.135e-05,2]
[347776558,1736100632773,-1022.22,9.135e-05,2]
[347776559,1736100632782,-500.0,9.135e-05,2]
[347776560,1736100632792,-693.68292131,9.135e-05,2]
[347776561,1736100632801,-500.0,9.135e-05,2]
[347776562,1736100632811,-516.03,9.137e-05,2]
[347776563,1736100632820,-500.0,9.137e-05,2]
[347776564,1736100632829,-500.0,9.137e-05,2]
[347776565,1736100632839,-500.0,9.137e-05,2]
[347776566,1736100632851,-500.0,9.137e-05,2]
[347776567,1736100632861,-909.86,9.137e-05,2]
[347776568,1736100632870,-815.12,9.137e-05,2]
[347776569,1736100632879,-1077.03,9.137e-05,2]
[347776570,1736100632888,-1996.75,9.137e-05,2]
[347776571,1736100632898,-500.0,9.137e-05,2]
[347776572,1736100632907,-500.0,9.137e-05,2]
[347776573,1736100632916,-522.31,9.137e-05,2]
[347776574,1736100632926,-1119.42,9.137e-05,2]
[347776575,1736100632935,-847.01,9.137e-05,2]
[347776576,1736100632945,-500.0,9.137e-05,2]
[347776577,1736100632954,-842.12,9.137e-05,2]
[347776578,1736100632964,-597.16,9.137e-05,2]
[347776579,1736100632973,-570.39,9.137e-05,2]
[347776580,1736100632983,-727.79,9.137e-05,2]
[347776581,1736100632992,-500.0,9.137e-05,2]
[347776582,1736100633002,-150.0,9.167e-05,2]
[347776583,1736100633011,-6103.1518,9.309e-05,2]
[347776584,1736100633021,-1653.0029,9.311e-05,2]
[347776585,1736100633031,-150.0,9.333e-05,2]
[347776586,1736100633041,-200.0,9.334e-05,2]
[347776587,1736100633051,-500.0,9.342e-05,2]
[347776588,1736100633061,-236.75,9.365e-05,2]
[347776589,1736100633071,-1000.0,9.388e-05,2]
[347776590,1736100633081,-500.0,9.409e-05,2]
[347776591,1736100633091,-233.1,9.409e-05,2]
[347776592,1736100633101,-500.0,9.409e-05,2]
[347776593,1736100633111,-500.0,9.409e-05,2]
[347776594,1736100633120,-500.0,9.409e-05,2]
[347776595,1736100633130,-500.0,9.409e-05,2]
[347776596,1736100633139,-500.0,9.409e-05,2]
[347776597,1736100633149,-500.0,9.409e-05,2]
[347776598,1736100633159,-500.0,9.409e-05,2]
[347776599,1736100633169,-500.0,9.409e-05,2]
[347776600,1736100633178,-292.01191363,9.409e-05,2]
[347776601,1736100633188,-500.0,9.409e-05,2]
[347776602,1736100633197,-500.0,9.409e-05,2]
[347776603,1736100633207,-500.0,9.409e-05,2]
[347776604,1736100633217,-717.55,9.409e-05,2]
[347776605,1736100633227,-500.0,9.409e-05,2]
[347776606,1736100633237,-500.0,9.409e-05,2]
[347776607,1736100633247,-500.0,9.409e-05,2]
[347776608,1736100633256,-548.16,9.409e-05,2]
[347776609,1736100633266,-1065.45,9.409e-05,2]
[347776610,1736100633275,-500.0,9.409e-05,2]
[347776611,1736100633285,-901.69,9.409e-05,2]
[347776612,1736100633295,-501.76,9.409e-05,2]
[347776613,1736100633304,-729.76,9.409e-05,2]
[347776614,1736100633314,-937.19,9.409e-05,2]
[347776615,1736100633324,-1022.22,9.409e-05,2]
[347776616,1736100633333,-282.01504984,9.409e-05,2]
[347776617,1736100633347,-217.98495016,9.409e-05,2]
[347776618,1736100633355,-500.0,9.409e-05,2]
[347776619,1736100633365,-516.03,9.411e-05,2]
[347776620,1736100633374,-500.0,9.411e-05,2]
[347776621,1736100633383,-500.0,9.411e-05,2]
[347776622,1736100633393,-500.0,9.411e-05,2]
[347776623,1736100633402,-500.0,9.411e-05,2]
[347776624,1736100633412,-909.86,9.411e-05,2]
[347776625,1736100633422,-815.12,9.411e-05,2]
[347776626,1736100633432,-507.26551256,9.411e-05,2]
[347776627,1736100633445,-569.76448744,9.411e-05,2]
[347776628,1736100633454,-83.45551256,9.411e-05,2]
[347776629,1736100633466,-345.176,9.411e-05,2]
[347776630,1736100633490,-1568.11848744,9.411e-05,2]
[347776631,1736100633499,-500.0,9.411e-05,2]
[347776632,1736100633508,-500.0,9.411e-05,2]
[347776633,1736100633518,-522.31,9.411e-05,2]
[347776634,1736100633528,-1119.42,9.411e-05,2]
[347776635,1736100633538,-847.01,9.411e-05,2]
[347776636,1736100633547,-500.0,9.411e-05,2]
[347776637,1736100633557,-842.12,9.411e-05,2]
[347776638,1736100633567,-597.16,9.411e-05,2]
[347776639,1736100633576,-570.39,9.411e-05,2]
[347776640,1736100633586,-727.79,9.411e-05,2]
[347776641,1736100633597,-500.0,9.411e-05,2]
[347776642,1736100633608,-150.0,9.431e-05,2]
[347776643,1736100633618,-150.0,9.5e-05,2]
[347776644,1736100633628,-150.0,9.5e-05,2]
[347776645,1736100633639,-1344.2528,9.582e-05,2]
[347776646,1736100633648,-5000.0,9.583e-05,2]
[347776647,1736100633658,-20420.7701,9.583e-05,2]
[347776648,1736100633667,-1182.62,9.589e-05,2]
[347776649,1736100633676,-150.0,9.667e-05,2]
[347776650,1736100633686,-156.93044623,9.674e-05,2]
[347776651,1736100633696,-500.0,9.681e-05,2]
[347776652,1736100633705,-500.0,9.681e-05,2]
[347776653,1736100633715,-507.74,9.681e-05,2]
[347776654,1736100633726,-500.0,9.681e-05,2]
[347776655,1736100633735,-1012.79,9.681e-05,2]
[347776656,1736100633744,-1007.59,9.681e-05,2]
[347776657,1736100633755,-500.0,9.681e-05,2]
[347776658,1736100633764,-500.0,9.681e-05,2]
[347776659,1736100633774,-291.55807555,9.682e-05,2]
[347776660,1736100633783,-500.0,9.682e-05,2]
[347776661,1736100633793,-292.34106922,9.682e-05,2]
[347776662,1736100633803,-500.0,9.682e-05,2]
[347776663,1736100633813,-500.0,9.682e-05,2]
[347776664,1736100633822,-500.0,9.682e-05,2]
[347776665,1736100633832,-500.0,9.682e-05,2]
[347776666,1736100633842,-500.0,9.682e-05,2]
[347776667,1736100633856,-500.0,9.682e-05,2]
[347776668,1736100633866,-500.0,9.682e-05,2]
[347776669,1736100633875,-500.0,9.682e-05,2]
[347776670,1736100633885,-500.0,9.682e-05,2]
[347776671,1736100633895,-500.0,9.682e-05,2]
[347776672,1736100633905,-500.0,9.682e-05,2]
[347776673,1736100633914,-500.0,9.682e-05,2]
[347776674,1736100633924,-188.44382424,9.682e-05,2]
[347776675,1736100633936,-311.55617576,9.682e-05,2]
[347776676,1736100633948,-500.0,9.682e-05,2]
[347776677,1736100633957,-500.0,9.682e-05,2]
[347776678,1736100633967,-500.0,9.682e-05,2]
[347776679,1736100633976,-500.0,9.682e-05,2]
[347776680,1736100633987,-500.0,9.682e-05,2]
[347776681,1736100633997,-572.52,9.682e-05,2]
[347776682,1736100634007,-500.0,9.682e-05,2]
[347776683,1736100634017,-500.0,9.682e-05,2]
[347776684,1736100634029,-509.92,9.682e-05,2]
[347776685,1736100634038,-558.07,9.682e-05,2]
[347776686,1736100634047,-500.25092334,9.682e-05,2]
[347776687,1736100634057,-289.74907482,9.682e-05,2]
[347776688,1736100634067,-500.0,9.682e-05,2]
[347776689,1736100634077,-500.0,9.682e-05,2]
[347776690,1736100634086,-500.0,9.682e-05,2]
[347776691,1736100634095,-500.0,9.682e-05,2]
[347776692,1736100634105,-500.0,9.682e-05,2]
[347776693,1736100634114,-500.0,9.682e-05,2]
[347776694,1736100634124,-500.0,9.682e-05,2]
[347776695,1736100634134,-500.0,9.682e-05,2]
[347776696,1736100634144,-500.0,9.682e-05,2]
[347776697,1736100634154,-500.0,9.682e-05,2]
[347776698,1736100634163,-294.00576742,9.682e-05,2]
[347776699,1736100634175,-205.99423258,9.682e-05,2]
[347776700,1736100634185,-500.0,9.682e-05,2]
[347776701,1736100634198,-500.0,9.682e-05,2]
[347776702,1736100634207,-500.0,9.682e-05,2]
[347776703,1736100634217,-156.91049976,9.682e-05,2]
[347776704,1736100634227,-500.0,9.682e-05,2]
[347776705,1736100634236,-500.0,9.682e-05,2]
[347776706,1736100634246,-500.0,9.682e-05,2]
[347776707,1736100634255,-500.0,9.682e-05,2]
[347776708,1736100634265,-500.0,9.682e-05,2]
[347776709,1736100634274,-500.0,9.682e-05,2]
[347776710,1736100634285,-500.0,9.682e-05,2]
[347776711,1736100634294,-500.0,9.682e-05,2]
[347776712,1736100634304,-588.5034205,9.682e-05,2]
[347776713,1736100634314,-500.0,9.682e-05,2]
[347776714,1736100634324,-500.0,9.682e-05,2]
[347776715,1736100634334,-500.0,9.682e-05,2]
[347776716,1736100634344,-500.0,9.682e-05,2]
[347776717,1736100634354,-500.0,9.682e-05,2]
[347776718,1736100634364,-500.0,9.682e-05,2]
[347776719,1736100634373,-500.0,9.682e-05,2]
[347776720,1736100634383,-500.0,9.682e-05,2]
[347776721,1736100634393,-500.0,9.682e-05,2]
[347776722,1736100634403,-500.0,9.682e-05,2]
[347776723,1736100634413,-500.0,9.682e-05,2]
[347776724,1736100634422,-500.0,9.682e-05,2]
[347776725,1736100634432,-500.0,9.682e-05,2]
[347776726,1736100634444,-500.0,9.682e-05,2]
[347776727,1736100634454,-500.0,9.682e-05,2]
[347776728,1736100634463,-1551.01,9.682e-05,2]
[347776729,1736100634473,-500.0,9.682e-05,2]
[347776730,1736100634483,-452.55,9.682e-05,2]
[347776731,1736100634492,-500.0,9.682e-05,2]
[347776732,1736100634502,-215.53184716,9.682e-05,2]
[347776733,1736100634514,-284.46815284,9.682e-05,2]
[347776734,1736100634524,-462.58545631,9.682e-05,2]
[347776735,1736100634534,-500.0,9.682e-05,2]
[347776736,1736100634543,-500.0,9.682e-05,2]
[347776737,1736100634553,-500.0,9.682e-05,2]
[347776738,1736100634563,-500.0,9.682e-05,2]
[347776739,1736100634572,-500.0,9.682e-05,2]
[347776740,1736100634581,-500.0,9.682e-05,2]
[347776741,1736100634591,-500.0,9.682e-05,2]
[347776742,1736100634600,-500.0,9.682e-05,2]
[347776743,1736100634609,-276.51393784,9.682e-05,2]
[347776747,1736100637536,-500.0,8.589e-05,2]
[347776748,1736100637545,-25.45,8.863e-05,2]
[347776749,1736100637556,-474.55,8.863e-05,2]
[347776750,1736100637566,-500.0,9.137e-05,2]
[347776751,1736100637575,-500.0,9.411e-05,2]
[347776752,1736100637585,-223.48606216,9.682e-05,2]
[347776753,1736100637595,-382.19797199,9.682e-05,2]
[347776754,1736100637604,-500.0,9.682e-05,2]
[347776755,1736100637613,-500.0,9.682e-05,2]
[347776756,1736100637623,-852.95,9.682e-05,2]
[347776757,1736100637632,-500.0,9.682e-05,2]
[347776758,1736100637641,-454.31596585,9.682e-05,2]
[347776759,1736100637652,-45.68403415,9.682e-05,2]
[347776760,1736100637662,-500.0,9.682e-05,2]
[347776761,1736100637671,-500.0,9.682e-05,2]
[347776762,1736100637679,-500.0,9.682e-05,2]
[347776763,1736100637689,-500.0,9.682e-05,2]
[347776764,1736100637698,-590.10443699,9.682e-05,2]
[347776765,1736100637707,-575.77,9.682e-05,2]
[347776766,1736100637716,-500.0,9.682e-05,2]
[347776767,1736100637725,-500.0,9.682e-05,2]
[347776768,1736100637734,-500.0,9.682e-05,2]
[347776769,1736100637743,-292.10392499,9.682e-05,2]
[347776770,1736100637752,-500.0,9.682e-05,2]
[347776771,1736100637761,-500.0,9.682e-05,2]
[347776772,1736100637771,-500.0,9.682e-05,2]
[347776773,1736100637779,-927.09,9.682e-05,2]
[347776774,1736100637789,-500.0,9.682e-05,2]
[347776775,1736100637798,-500.0,9.682e-05,2]
[347776776,1736100637807,-938.5,9.682e-05,2]
[347776777,1736100637817,-500.0,9.682e-05,2]
[347776778,1736100637826,-500.0,9.682e-05,2]
[347776779,1736100637835,-500.0,9.682e-05,2]
[347776780,1736100637845,-581.74,9.682e-05,2]
[347776781,1736100637860,-500.0,9.682e-05,2]
[347776782,1736100637869,-500.0,9.682e-05,2]
[347776783,1736100637878,-500.0,9.682e-05,2]
[347776784,1736100637887,-500.0,9.682e-05,2]
[347776785,1736100637897,-500.0,9.682e-05,2]
[347776786,1736100637907,-500.0,9.682e-05,2]
[347776787,1736100637916,-500.0,9.682e-05,2]
[347776788,1736100637926,-968.6,9.682e-05,2]
[347776789,1736100637936,-500.0,9.682e-05,2]
[347776790,1736100637947,-500.0,9.682e-05,2]
[347776791,1736100637956,-500.0,9.682e-05,2]
[347776792,1736100637965,-500.0,9.682e-05,2]
[347776793,1736100637974,-500.0,9.682e-05,2]
[347776794,1736100637983,-500.0,9.682e-05,2]
[347776795,1736100637993,-500.0,9.682e-05,2]
[347776796,1736100638002,-1034.92,9.682e-05,2]
[347776797,1736100638012,-500.0,9.682e-05,2]
[347776798,1736100638021,-500.0,9.682e-05,2]
[347776799,1736100638030,-500.0,9.682e-05,2]
[347776800,1736100638040,-500.0,9.682e-05,2]
[347776801,1736100638048,-500.0,9.682e-05,2]
[347776802,1736100638058,-196.16916241,9.682e-05,2]
[347776803,1736100638067,-500.0,9.682e-05,2]
[347776804,1736100638077,-618.74,9.682e-05,2]
[347776805,1736100638086,-568.75,9.682e-05,2]
[347776806,1736100638095,-500.0,9.682e-05,2]
[347776807,1736100638104,-500.0,9.682e-05,2]
[347776808,1736100638114,-500.0,9.682e-05,2]
[347776809,1736100638123,-500.0,9.682e-05,2]
[347776810,1736100638132,-403.50815141,9.682e-05,2]
[347776811,1736100638142,-500.0,9.682e-05,2]
[347776812,1736100638151,-500.0,9.682e-05,2]
[347776813,1736100638161,-500.0,9.682e-05,2]
[347776814,1736100638170,-500.0,9.682e-05,2]
[347776815,1736100638180,-786.16,9.682e-05,2]
[347776816,1736100638190,-500.0,9.682e-05,2]
[347776817,1736100638199,-540.7,9.682e-05,2]
[347776818,1736100638209,-500.0,9.682e-05,2]
[347776819,1736100638218,-1614.92,9.682e-05,2]
[347776820,1736100638228,-131.17080932,9.682e-05,2]
[347776821,1736100638240,-384.12919068,9.682e-05,2]
[347776822,1736100638249,-1064.52,9.682e-05,2]
[347776823,1736100638259,-636.83,9.682e-05,2]
[347776824,1736100638268,-500.0,9.682e-05,2]
[347776825,1736100638278,-500.0,9.682e-05,2]
[347776826,1736100638288,-508.36900952,9.682e-05,2]
[347776827,1736100638297,-520.25,9.682e-05,2]
[347776828,1736100638307,-500.0,9.682e-05,2]
[347776829,1736100638316,-812.04,9.682e-05,2]
[347776830,1736100638326,-542.45,9.682e-05,2]
[347776831,1736100638335,-468.38279437,9.682e-05,2]
[347776832,1736100638344,-500.0,9.683e-05,2]
[347776833,1736100638354,-491.76583699,9.683e-05,2]
[347776834,1736100638363,-500.0,9.683e-05,2]
[347776835,1736100638373,-500.0,9.683e-05,2]
[347776836,1736100638382,-500.0,9.683e-05,2]
[347776837,1736100638391,-500.0,9.683e-05,2]
[347776838,1736100638400,-500.0,9.683e-05,2]
[347776839,1736100638410,-500.0,9.683e-05,2]
[347776840,1736100638420,-500.0,9.683e-05,2]
[347776841,1736100638429,-500.0,9.683e-05,2]
[347776842,1736100638439,-500.0,9.683e-05,2]
[347776843,1736100638451,-500.0,9.683e-05,2]
[347776844,1736100638460,-717.55,9.683e-05,2]
[347776845,1736100638469,-500.0,9.683e-05,2]
[347776846,1736100638479,-500.0,9.683e-05,2]
[347776847,1736100638489,-500.0,9.683e-05,2]
[347776848,1736100638499,-548.16,9.683e-05,2]
[347776849,1736100638508,-1065.45,9.683e-05,2]
[347776850,1736100638517,-500.0,9.683e-05,2]
[347776851,1736100638526,-901.69,9.683e-05,2]
[347776852,1736100638535,-501.76,9.683e-05,2]
[347776853,1736100638544,-729.76,9.683e-05,2]
[347776854,1736100638553,-937.19,9.683e-05,2]
[347776855,1736100638562,-1022.22,9.683e-05,2]
[347776856,1736100638572,-500.0,9.683e-05,2]
[347776857,1736100638581,-500.0,9.683e-05,2]
[347776858,1736100638591,-516.03,9.685e-05,2]
[347776859,1736100638600,-500.0,9.685e-05,2]
[347776860,1736100638609,-500.0,9.685e-05,2]
[347776861,1736100638619,-500.0,9.685e-05,2]
[347776862,1736100638628,-500.0,9.685e-05,2]
[347776863,1736100638638,-909.86,9.685e-05,2]
[347776864,1736100638647,-815.12,9.685e-05,2]
[347776865,1736100638656,-1077.03,9.685e-05,2]
[347776866,1736100638667,-1996.75,9.685e-05,2]
[347776867,1736100638676,-500.0,9.685e-05,2]
[347776868,1736100638685,-500.0,9.685e-05,2]
[347776869,1736100638696,-522.31,9.685e-05,2]
[347776870,1736100638706,-1119.42,9.685e-05,2]
[347776871,1736100638715,-847.01,9.685e-05,2]
[347776872,1736100638724,-500.0,9.685e-05,2]